fUSD/lending_fUSD_20260515
["ID","MTS","AMOUNT","RATE_DAILY","PERIOD"]
[422326227,1778825439000,-500.0,0.00013698,2]
[422326228,1778825439000,-500.0,0.00013698,2]
[422326233,1778825439000,-159.03342442,0.00013698,2]
[422326232,1778825439000,-500.0,0.00013698,2]
[422326201,1778825439000,-896.77,0.00013698,2]
[422326219,1778825439000,-500.0,0.00013698,2]
[422326202,1778825439000,-896.77,0.00013698,2]
[422326186,1778825439000,-468.2230542,0.00013698,2]
[422326196,1778825439000,-523.31,0.00013698,2]
[422326169,1778825439000,-817.62,0.00013698,2]
[422326170,1778825439000,-500.0,0.00013698,2]
[422326173,1778825439000,-500.0,0.00013698,2]
[422326171,1778825439000,-500.0,0.00013698,2]
[422326172,1778825439000,-500.0,0.00013698,2]
[422326174,1778825439000,-500.0,0.00013698,2]
[422326175,1778825439000,-616.49012855,0.00013698,2]
[422326176,1778825439000,-500.0,0.00013698,2]
[422326178,1778825439000,-500.0,0.00013698,2]
[422326177,1778825439000,-355.37055737,0.00013698,2]
[422326179,1778825439000,-502.38787116,0.00013698,2]
[422326180,1778825439000,-500.0,0.00013698,2]
[422326183,1778825439000,-500.0,0.00013698,2]
[422326181,1778825439000,-500.0,0.00013698,2]
[422326184,1778825439000,-500.0,0.00013698,2]
[422326185,1778825439000,-500.0,0.00013698,2]
[422326182,1778825439000,-500.0,0.00013698,2]
[422326187,1778825439000,-500.0,0.00013698,2]
[422326189,1778825439000,-500.0,0.00013698,2]
[422326188,1778825439000,-500.0,0.00013698,2]
[422326190,1778825439000,-500.0,0.00013698,2]
[422326194,1778825439000,-523.31,0.00013698,2]
[422326191,1778825439000,-603.34873986,0.00013698,2]
[422326192,1778825439000,-501.931273,0.00013698,2]
[422326193,1778825439000,-523.31,0.00013698,2]
[422326200,1778825439000,-896.77,0.00013698,2]
[422326195,1778825439000,-523.31,0.00013698,2]
[422326199,1778825439000,-896.77,0.00013698,2]
[422326198,1778825439000,-523.31,0.00013698,2]
[422326197,1778825439000,-523.31,0.00013698,2]
[422326240,1778825439000,-5304.91,0.00013699,2]
[422326230,1778825439000,-500.0,0.00013698,2]
[422326234,1778825439000,-200.0,0.00013699,2]
[422326272,1778825439000,-3292.0,0.00014239,2]
[422326271,1778825439000,-823.0,0.00014209,2]
[422326276,1778825439000,-16684.49823871,0.00014255,2]
[422326273,1778825439000,-166.66,0.00014247,2]
[422326275,1778825439000,-433.0,0.0001425,2]
[422326274,1778825439000,-150.76346064,0.00014247,21]
[422326279,1778825439000,-163.137635,0.00014288,2]
[422326278,1778825439000,-188.497604,0.00014288,2]
[422326277,1778825439000,-42052.93704783,0.00014259,2]
[422326280,1778825439000,-541.24100416,0.00014379,2]
[422326282,1778825439000,-10449.59981307,0.0001439,2]
[422326281,1778825439000,-166.66,0.00014384,2]
[422326283,1778825439000,-350.0,0.00014444,2]
[422326284,1778825439000,-355.73,0.00014497,2]
[422326285,1778825439000,-3842.09,0.00014497,2]
[422326293,1778825439000,-42052.93704783,0.00014579,2]
[422326291,1778825439000,-350.0,0.00014547,2]
[422326289,1778825439000,-2713.19,0.00014497,2]
[422326290,1778825439000,-5000.0,0.0001451,2]
[422326288,1778825439000,-1370.35,0.00014497,2]
[422326286,1778825439000,-604.2,0.00014497,2]
[422326292,1778825439000,-16684.49823871,0.00014577,2]
[422326294,1778825439000,-2211.30663091,0.000147,3]
[422326296,1778825439000,-805.9149786,0.000148,2]
[422326295,1778825439000,-150.79,0.00014709,2]
[422326299,1778825439000,-500.0,0.00014849,2]
[422326297,1778825439000,-160.37012445,0.000148,2]
[422326300,1778825439000,-500.0,0.00014849,2]
[422326229,1778825439000,-500.0,0.00013698,2]
[422326270,1778825439000,-763.82,0.000142,2]
[422326268,1778825439000,-770.7589289,0.0001419,2]
[422326298,1778825439000,-14050.82389583,0.000148,2]
[422326264,1778825439000,-500.0,0.00014105,2]
[422326235,1778825439000,-166.66,0.00013699,2]
[422326237,1778825439000,-2038.01,0.00013699,2]
[422326238,1778825439000,-156.41,0.00013699,2]
[422326239,1778825439000,-782.09,0.00013699,2]
[422326242,1778825439000,-1441.35,0.00013699,2]
[422326241,1778825439000,-150.99,0.00013699,2]
[422326243,1778825439000,-9999.99,0.00013699,2]
[422326244,1778825439000,-15709.27,0.00013699,2]
[422326245,1778825439000,-638.12,0.00013699,2]
[422326251,1778825439000,-500.0,0.00013832,2]
[422326247,1778825439000,-167.24,0.00013704,2]
[422326248,1778825439000,-152.0,0.00013778,7]
[422326249,1778825439000,-152.0,0.00013778,7]
[422326253,1778825439000,-152.0,0.00013873,7]
[422326246,1778825439000,-5984.31,0.00013699,2]
[422326254,1778825439000,-166.23,0.000139,2]
[422326266,1778825439000,-315.44579433,0.0001419,2]
[422326252,1778825439000,-166.66,0.00013836,2]
[422326262,1778825439000,-4092.69037655,0.0001399,2]
[422326267,1778825439000,-1134.9893546,0.0001419,2]
[422326265,1778825439000,-166.66,0.0001411,2]
[422326263,1778825439000,-156.6761228,0.00014017,2]
[422326260,1778825439000,-1325.465337,0.00013974,2]
[422326269,1778825439000,-577.61138007,0.0001419,2]
[422326261,1778825439000,-150.79,0.00013974,2]
[422326259,1778825439000,-708.490707,0.00013974,2]
[422326257,1778825439000,-42052.93704783,0.00013938,2]
[422326255,1778825439000,-152.0,0.00013901,7]
[422326256,1778825439000,-16684.49823871,0.00013932,2]
[422326250,1778825439000,-152.0,0.00013806,7]
[422326258,1778825439000,-166.66,0.00013973,2]
[422326345,1778825440000,-500.0,0.00014999,2]
[422326341,1778825440000,-500.0,0.00014999,2]
[422326342,1778825440000,-500.0,0.00014999,2]
[422326340,1778825440000,-500.0,0.00014999,2]
[422326336,1778825440000,-774.69244979,0.0001499,2]
[422326335,1778825440000,-15397.5578527,0.00014985,2]
[422326339,1778825440000,-500.0,0.00014999,2]
[422326337,1778825440000,-500.0,0.00014999,2]
[422326332,1778825440000,-789.0,0.00014959,2]
[422326334,1778825440000,-500.0,0.00014984,2]
[422326344,1778825440000,-500.0,0.00014999,2]
[422326338,1778825440000,-500.0,0.00014999,2]
[422326343,1778825440000,-500.0,0.00014999,2]
[422326360,1778825440000,-740.61,0.00014999,2]
[422326350,1778825440000,-500.0,0.00014999,2]
[422326347,1778825440000,-500.0,0.00014999,2]
[422326348,1778825440000,-500.0,0.00014999,2]
[422326352,1778825440000,-500.0,0.00014999,2]
[422326349,1778825440000,-500.0,0.00014999,2]
[422326351,1778825440000,-500.0,0.00014999,2]
[422326356,1778825440000,-500.0,0.00014999,2]
[422326355,1778825440000,-364.74758396,0.00014999,2]
[422326353,1778825440000,-500.0,0.00014999,2]
[422326354,1778825440000,-500.0,0.00014999,2]
[422326357,1778825440000,-500.0,0.00014999,2]
[422326358,1778825440000,-500.0,0.00014999,2]
[422326359,1778825440000,-740.61,0.00014999,2]
[422326333,1778825440000,-188.55123638,0.0001496,2]
[422326346,1778825440000,-500.0,0.00014999,2]
[422326330,1778825440000,-2000.0,0.00014959,2]
[422326315,1778825440000,-500.0,0.00014859,2]
[422326329,1778825440000,-350.0,0.00014948,2]
[422326368,1778825440000,-896.77,0.00014999,2]
[422326302,1778825440000,-28953.05234588,0.0001485,2]
[422326301,1778825440000,-805.91497858,0.0001485,2]
[422326304,1778825440000,-14050.82389581,0.0001485,2]
[422326303,1778825440000,-774.69244979,0.0001485,2]
[422326305,1778825440000,-500.0,0.00014856,2]
[422326307,1778825440000,-500.0,0.00014859,2]
[422326306,1778825440000,-500.0,0.00014859,2]
[422326310,1778825440000,-523.31,0.00014859,2]
[422326309,1778825440000,-342.11408769,0.00014859,2]
[422326308,1778825440000,-413.49754734,0.00014859,2]
[422326311,1778825440000,-896.77,0.00014859,2]
[422326313,1778825440000,-500.0,0.00014859,2]
[422326331,1778825440000,-12495.0,0.00014959,2]
[422326312,1778825440000,-500.0,0.00014859,2]
[422326316,1778825440000,-500.0,0.00014859,2]
[422326318,1778825440000,-500.0,0.00014859,2]
[422326317,1778825440000,-500.0,0.00014859,2]
[422326319,1778825440000,-171277.0364404,0.0001486,2]
[422326321,1778825440000,-153.53198692,0.000149,2]
[422326320,1778825440000,-1608449.8186853,0.0001486,2]
[422326325,1778825440000,-16684.49823871,0.000149,2]
[422326322,1778825440000,-153.53198691,0.000149,2]
[422326324,1778825440000,-42052.93704783,0.000149,2]
[422326323,1778825440000,-1762.14,0.000149,2]
[422326327,1778825440000,-160.37012445,0.000149,2]
[422326326,1778825440000,-805.91497858,0.000149,2]
[422326328,1778825440000,-14050.82389581,0.000149,2]
[422326314,1778825440000,-500.0,0.00014859,2]
[422326361,1778825440000,-740.61,0.00014999,2]
[422326381,1778825440000,-500.0,0.00014999,2]
[422326362,1778825440000,-817.62,0.00014999,2]
[422326399,1778825440000,-500.0,0.00014999,2]
[422326400,1778825440000,-500.0,0.00014999,2]
[422326401,1778825440000,-500.0,0.00014999,2]
[422326402,1778825440000,-500.0,0.00014999,2]
[422326398,1778825440000,-500.0,0.00014999,2]
[422326403,1778825440000,-500.0,0.00014999,2]
[422326405,1778825440000,-500.0,0.00014999,2]
[422326404,1778825440000,-500.0,0.00014999,2]
[422326406,1778825440000,-500.0,0.00014999,2]
[422326408,1778825440000,-500.0,0.00014999,2]
[422326407,1778825440000,-500.0,0.00014999,2]
[422326410,1778825440000,-500.0,0.00014999,2]
[422326415,1778825440000,-500.0,0.00014999,2]
[422326397,1778825440000,-500.0,0.00014999,2]
[422326414,1778825440000,-500.0,0.00014999,2]
[422326364,1778825440000,-817.62,0.00014999,2]
[422326409,1778825440000,-500.0,0.00014999,2]
[422326413,1778825440000,-500.0,0.00014999,2]
[422326411,1778825440000,-500.0,0.00014999,2]
[422326417,1778825440000,-500.0,0.00014999,2]
[422326419,1778825440000,-500.0,0.00014999,2]
[422326418,1778825440000,-500.0,0.00014999,2]
[422326420,1778825440000,-500.0,0.00014999,2]
[422326421,1778825440000,-500.0,0.00014999,2]
[422326422,1778825440000,-500.0,0.00014999,2]
[422326423,1778825440000,-500.0,0.00014999,2]
[422326425,1778825440000,-500.0,0.00014999,2]
[422326424,1778825440000,-500.0,0.00014999,2]
[422326416,1778825440000,-500.0,0.00014999,2]
[422326395,1778825440000,-500.0,0.00014999,2]
[422326412,1778825440000,-500.0,0.00014999,2]
[422326390,1778825440000,-500.0,0.00014999,2]
[422326396,1778825440000,-500.0,0.00014999,2]
[422326365,1778825440000,-523.31,0.00014999,2]
[422326363,1778825440000,-817.62,0.00014999,2]
[422326366,1778825440000,-523.31,0.00014999,2]
[422326367,1778825440000,-523.31,0.00014999,2]
[422326369,1778825440000,-896.77,0.00014999,2]
[422326371,1778825440000,-500.0,0.00014999,2]
[422326373,1778825440000,-401.0210076,0.00014999,2]
[422326379,1778825440000,-500.0,0.00014999,2]
[422326375,1778825440000,-500.0,0.00014999,2]
[422326380,1778825440000,-500.0,0.00014999,2]
[422326374,1778825440000,-500.0,0.00014999,2]
[422326376,1778825440000,-500.0,0.00014999,2]
[422326372,1778825440000,-500.0,0.00014999,2]
[422326370,1778825440000,-896.77,0.00014999,2]
[422326382,1778825440000,-500.0,0.00014999,2]
[422326393,1778825440000,-500.0,0.00014999,2]
[422326389,1778825440000,-500.0,0.00014999,2]
[422326378,1778825440000,-500.0,0.00014999,2]
[422326394,1778825440000,-500.0,0.00014999,2]
[422326392,1778825440000,-500.0,0.00014999,2]
[422326391,1778825440000,-500.0,0.00014999,2]
[422326388,1778825440000,-500.0,0.00014999,2]
[422326385,1778825440000,-500.0,0.00014999,2]
[422326387,1778825440000,-500.0,0.00014999,2]
[422326386,1778825440000,-500.0,0.00014999,2]
[422326383,1778825440000,-500.0,0.00014999,2]
[422326384,1778825440000,-500.0,0.00014999,2]
[422326377,1778825440000,-500.0,0.00014999,2]
[422326451,1778825441000,-500.0,0.00015,2]
[422326449,1778825441000,-500.0,0.00015,2]
[422326452,1778825441000,-500.0,0.00015,2]
[422326447,1778825441000,-666.0,0.00014999,2]
[422326450,1778825441000,-500.0,0.00015,2]
[422326448,1778825441000,-674363.98569469,0.00015,2]
[422326453,1778825441000,-500.0,0.00015,2]
[422326457,1778825441000,-500.0,0.00015,2]
[422326454,1778825441000,-500.0,0.00015,2]
[422326455,1778825441000,-500.0,0.00015,2]
[422326458,1778825441000,-500.0,0.00015,2]
[422326460,1778825441000,-500.0,0.00015,2]
[422326466,1778825441000,-500.0,0.00015,2]
[422326443,1778825441000,-666.0,0.00014999,2]
[422326459,1778825441000,-500.0,0.00015,2]
[422326456,1778825441000,-500.0,0.00015,2]
[422326446,1778825441000,-300.0,0.00014999,2]
[422326427,1778825441000,-500.0,0.00014999,2]
[422326441,1778825441000,-300.0,0.00014999,2]
[422326467,1778825441000,-500.0,0.00015,2]
[422326426,1778825441000,-500.0,0.00014999,2]
[422326429,1778825441000,-500.0,0.00014999,2]
[422326431,1778825441000,-500.0,0.00014999,2]
[422326428,1778825441000,-500.0,0.00014999,2]
[422326430,1778825441000,-500.0,0.00014999,2]
[422326433,1778825441000,-500.0,0.00014999,2]
[422326432,1778825441000,-500.0,0.00014999,2]
[422326435,1778825441000,-500.0,0.00014999,2]
[422326434,1778825441000,-500.0,0.00014999,2]
[422326437,1778825441000,-500.0,0.00014999,2]
[422326436,1778825441000,-500.0,0.00014999,2]
[422326438,1778825441000,-500.0,0.00014999,2]
[422326445,1778825441000,-666.0,0.00014999,2]
[422326442,1778825441000,-300.0,0.00014999,2]
[422326440,1778825441000,-300.0,0.00014999,2]
[422326439,1778825441000,-500.0,0.00014999,2]
[422326444,1778825441000,-300.0,0.00014999,2]
[422326461,1778825441000,-500.0,0.00015,2]
[422326470,1778825441000,-5708358.16832907,0.00015,2]
[422326462,1778825441000,-500.0,0.00015,2]
[422326488,1778825441000,-5000.0,0.00011997,2]
[422326500,1778825441000,-151.0,0.00015,2]
[422326501,1778825441000,-151.0,0.00015,2]
[422326490,1778825441000,-785.90395934,0.00013398,2]
[422326492,1778825441000,-5310727.75276164,0.00015,2]
[422326494,1778825441000,-1539.0,0.00015,2]
[422326496,1778825441000,-1618.91395533,0.00015,2]
[422326487,1778825441000,-1125.72543209,0.00015,2]
[422326495,1778825441000,-1539.0,0.00015,2]
[422326493,1778825441000,-427.78402364,0.00015,2]
[422326499,1778825441000,-151.0,0.00015,2]
[422326502,1778825441000,-1019.129174,0.00015,2]
[422326504,1778825441000,-503.71585085,0.00015,2]
[422326503,1778825441000,-1019.129174,0.00015,2]
[422326505,1778825441000,-151.0,0.00015,2]
[422326463,1778825441000,-500.0,0.00015,2]
[422326497,1778825441000,-156.84563892,0.00015,2]
[422326481,1778825441000,-80902.37335018,0.00015,2]
[422326498,1778825441000,-151.0,0.00015,2]
[422326484,1778825441000,-21526.82891913,0.00015,2]
[422326464,1778825441000,-500.0,0.00015,2]
[422326480,1778825441000,-1242.32960211,0.00015,2]
[422326465,1778825441000,-500.0,0.00015,2]
[422326468,1778825441000,-500.0,0.00015,2]
[422326471,1778825441000,-151.0,0.00015,2]
[422326473,1778825441000,-3144.531642,0.00015,14]
[422326478,1778825441000,-290.84887371,0.00015,2]
[422326474,1778825441000,-8082.43942848,0.00015,2]
[422326469,1778825441000,-267.18441959,0.00015,2]
[422326475,1778825441000,-4250077.73386303,0.00015,2]
[422326476,1778825441000,-730.200385,0.00015,2]
[422326477,1778825441000,-15948.15585792,0.00015,2]
[422326479,1778825441000,-597.34621392,0.00015,2]
[422326485,1778825441000,-1733.58218583,0.00015,2]
[422326486,1778825441000,-1109.46875634,0.00015,2]
[422326483,1778825441000,-302.97385118,0.00015,2]
[422326472,1778825441000,-2076.06689717,0.00015,2]
[422326482,1778825441000,-718.15499518,0.00015,2]
[422326544,1778825442000,-151.0,0.00015,2]
[422326548,1778825442000,-151.0,0.00015,2]
[422326546,1778825442000,-151.0,0.00015,2]
[422326543,1778825442000,-151.0,0.00015,2]
[422326541,1778825442000,-151.0,0.00015,2]
[422326542,1778825442000,-151.0,0.00015,2]
[422326539,1778825442000,-151.0,0.00015,2]
[422326538,1778825442000,-151.0,0.00015,2]
[422326549,1778825442000,-151.0,0.00015,2]
[422326533,1778825442000,-1038.024002,0.00015,2]
[422326540,1778825442000,-151.0,0.00015,2]
[422326547,1778825442000,-151.0,0.00015,2]
[422326556,1778825442000,-663.870599,0.00015068,2]
[422326550,1778825442000,-151.0,0.00015,2]
[422326551,1778825442000,-151.0,0.00015,2]
[422326552,1778825442000,-900.0,0.00015068,2]
[422326555,1778825442000,-663.870599,0.00015068,2]
[422326559,1778825442000,-663.870599,0.00015068,2]
[422326554,1778825442000,-663.870599,0.00015068,2]
[422326553,1778825442000,-663.870599,0.00015068,2]
[422326561,1778825442000,-167.24,0.00015075,2]
[422326557,1778825442000,-663.870599,0.00015068,2]
[422326560,1778825442000,-663.870599,0.00015068,2]
[422326562,1778825442000,-353.54145072,0.00015086,2]
[422326536,1778825442000,-1038.024002,0.00015,2]
[422326545,1778825442000,-151.0,0.00015,2]
[422326532,1778825442000,-1038.024002,0.00015,2]
[422326517,1778825442000,-151.0,0.00015,2]
[422326537,1778825442000,-1038.024002,0.00015,2]
[422326506,1778825442000,-1019.129174,0.00015,2]
[422326509,1778825442000,-1019.129174,0.00015,2]
[422326510,1778825442000,-1019.129174,0.00015,2]
[422326508,1778825442000,-1019.129174,0.00015,2]
[422326513,1778825442000,-151.0,0.00015,2]
[422326511,1778825442000,-1019.129174,0.00015,2]
[422326512,1778825442000,-151.0,0.00015,2]
[422326507,1778825442000,-1019.129174,0.00015,2]
[422326514,1778825442000,-151.0,0.00015,2]
[422326515,1778825442000,-151.0,0.00015,2]
[422326564,1778825442000,-207.32822116,0.00015116,2]
[422326516,1778825442000,-151.0,0.00015,2]
[422326520,1778825442000,-430.434876,0.00015,2]
[422326519,1778825442000,-430.434876,0.00015,2]
[422326518,1778825442000,-430.434876,0.00015,2]
[422326526,1778825442000,-156.0,0.00015,2]
[422326525,1778825442000,-430.434876,0.00015,2]
[422326524,1778825442000,-430.434876,0.00015,2]
[422326523,1778825442000,-430.434876,0.00015,2]
[422326522,1778825442000,-430.434876,0.00015,2]
[422326521,1778825442000,-430.434876,0.00015,2]
[422326527,1778825442000,-156.0,0.00015,2]
[422326528,1778825442000,-156.0,0.00015,2]
[422326529,1778825442000,-157.97419088,0.00015,2]
[422326535,1778825442000,-1038.024002,0.00015,2]
[422326534,1778825442000,-1038.024002,0.00015,2]
[422326530,1778825442000,-1038.024002,0.00015,2]
[422326531,1778825442000,-1038.024002,0.00015,2]
[422326565,1778825442000,-151.0,0.00015116,2]
[422326558,1778825442000,-663.870599,0.00015068,2]
[422326568,1778825442000,-151.0,0.00015116,2]
[422326594,1778825442000,-1865.36488657,0.00015116,2]
[422326599,1778825442000,-151.0,0.00015116,2]
[422326601,1778825442000,-151.0,0.00015116,2]
[422326611,1778825442000,-151.0,0.00015116,2]
[422326600,1778825442000,-151.0,0.00015116,2]
[422326603,1778825442000,-151.0,0.00015116,2]
[422326612,1778825442000,-151.0,0.00015116,2]
[422326614,1778825442000,-151.0,0.00015116,2]
[422326613,1778825442000,-151.0,0.00015116,2]
[422326605,1778825442000,-151.0,0.00015116,2]
[422326615,1778825442000,-151.0,0.00015116,2]
[422326606,1778825442000,-151.0,0.00015116,2]
[422326609,1778825442000,-151.0,0.00015116,2]
[422326616,1778825442000,-151.0,0.00015116,2]
[422326617,1778825442000,-151.0,0.00015116,2]
[422326626,1778825442000,-736.0,0.00015533,2]
[422326625,1778825442000,-1237.04355054,0.000155,2]
[422326621,1778825442000,-1517.64,0.000153,2]
[422326618,1778825442000,-500.0,0.0001513,2]
[422326620,1778825442000,-150.0,0.00015233,2]
[422326619,1778825442000,-5364.0,0.000152,2]
[422326627,1778825442000,-350.0,0.00015543,2]
[422326623,1778825442000,-500.0,0.00015404,2]
[422326624,1778825442000,-150.79,0.00015445,2]
[422326622,1778825442000,-350.0,0.00015345,2]
[422326628,1778825442000,-1152.0,0.00015619,2]
[422326563,1778825442000,-150.12091582,0.00015089,2]
[422326597,1778825442000,-151.0,0.00015116,2]
[422326596,1778825442000,-387.80407423,0.00015116,2]
[422326629,1778825442000,-300.0,0.0001563,2]
[422326591,1778825442000,-151.0,0.00015116,2]
[422326595,1778825442000,-151.0,0.00015116,2]
[422326567,1778825442000,-500.0,0.00015116,2]
[422326571,1778825442000,-151.0,0.00015116,2]
[422326570,1778825442000,-151.0,0.00015116,2]
[422326573,1778825442000,-151.0,0.00015116,2]
[422326569,1778825442000,-500.0,0.00015116,2]
[422326572,1778825442000,-500.0,0.00015116,2]
[422326574,1778825442000,-500.0,0.00015116,2]
[422326575,1778825442000,-151.0,0.00015116,2]
[422326576,1778825442000,-612.69874574,0.00015116,2]
[422326579,1778825442000,-151.0,0.00015116,2]
[422326577,1778825442000,-151.0,0.00015116,2]
[422326578,1778825442000,-151.0,0.00015116,2]
[422326566,1778825442000,-500.0,0.00015116,2]
[422326582,1778825442000,-151.0,0.00015116,2]
[422326593,1778825442000,-151.0,0.00015116,2]
[422326592,1778825442000,-151.0,0.00015116,2]
[422326587,1778825442000,-500.0,0.00015116,2]
[422326598,1778825442000,-151.0,0.00015116,2]
[422326580,1778825442000,-151.0,0.00015116,2]
[422326589,1778825442000,-500.0,0.00015116,2]
[422326590,1778825442000,-498.8363726,0.00015116,2]
[422326586,1778825442000,-151.0,0.00015116,2]
[422326581,1778825442000,-151.0,0.00015116,2]
[422326583,1778825442000,-500.0,0.00015116,2]
[422326584,1778825442000,-151.0,0.00015116,2]
[422326585,1778825442000,-500.0,0.00015116,2]
[422326588,1778825442000,-500.0,0.00015116,2]
[422326672,1778825443000,-1633.929574,0.00016438,2]
[422326667,1778825443000,-1633.929574,0.00016438,2]
[422326668,1778825443000,-1633.929574,0.00016438,2]
[422326671,1778825443000,-1633.929574,0.00016438,2]
[422326661,1778825443000,-900.0,0.00016438,2]
[422326663,1778825443000,-425.397866,0.00016438,2]
[422326669,1778825443000,-1633.929574,0.00016438,2]
[422326670,1778825443000,-1633.929574,0.00016438,2]
[422326665,1778825443000,-425.397866,0.00016438,2]
[422326662,1778825443000,-425.397866,0.00016438,2]
[422326666,1778825443000,-237.702889,0.00016438,2]
[422326664,1778825443000,-425.397866,0.00016438,2]
[422326676,1778825443000,-220.0,0.00016438,2]
[422326675,1778825443000,-330.0,0.00016438,2]
[422326674,1778825443000,-1633.929574,0.00016438,2]
[422326679,1778825443000,-2000.0,0.00016621,2]
[422326678,1778825443000,-7432.72693047,0.000165,2]
[422326677,1778825443000,-167.24,0.00016445,2]
[422326680,1778825443000,-169.23,0.00016712,2]
[422326684,1778825443000,-1762.14,0.000169,2]
[422326681,1778825443000,-2080.17592889,0.0001676,2]
[422326683,1778825443000,-666.0,0.00016842,2]
[422326682,1778825443000,-300.0,0.00016842,2]
[422326685,1778825443000,-150.79,0.00016916,2]
[422326657,1778825443000,-178.0,0.00016438,2]
[422326673,1778825443000,-1633.929574,0.00016438,2]
[422326655,1778825443000,-161.23,0.00016235,2]
[422326642,1778825443000,-151.01808,0.0001605,2]
[422326656,1778825443000,-200.0,0.0001634,2]
[422326696,1778825443000,-2157.14243826,0.00017308,2]
[422326630,1778825443000,-300.0,0.0001563,2]
[422326631,1778825443000,-666.0,0.0001563,2]
[422326632,1778825443000,-238.66,0.00015635,2]
[422326633,1778825443000,-4609.0,0.00015663,2]
[422326636,1778825443000,-2269.74821281,0.00015807,2]
[422326637,1778825443000,-166.0,0.00015952,2]
[422326635,1778825443000,-500.0,0.00015678,2]
[422326638,1778825443000,-350.0,0.00015963,2]
[422326639,1778825443000,-300.0,0.00016,2]
[422326649,1778825443000,-9999.99,0.00016116,2]
[422326640,1778825443000,-522.17933916,0.00016,2]
[422326658,1778825443000,-195.0,0.00016438,2]
[422326644,1778825443000,-151.01809,0.0001605,2]
[422326641,1778825443000,-151.01809,0.0001603,2]
[422326646,1778825443000,-350.0,0.00016059,2]
[422326647,1778825443000,-522.17933916,0.000161,2]
[422326643,1778825443000,-151.01809,0.0001605,2]
[422326648,1778825443000,-229.87005247,0.0001611,15]
[422326651,1778825443000,-350.0,0.00016186,2]
[422326654,1778825443000,-208.39970375,0.00016226,2]
[422326650,1778825443000,-150.79,0.0001618,2]
[422326660,1778825443000,-229.9,0.00016438,2]
[422326653,1778825443000,-2005.9555727,0.00016212,2]
[422326659,1778825443000,-297.10792124,0.00016438,2]
[422326652,1778825443000,-522.17933916,0.000162,2]
[422326645,1778825443000,-151.01809,0.0001605,2]
[422326686,1778825443000,-1252.0,0.00016937,2]
[422326634,1778825443000,-1934.38338737,0.00015664,2]
[422326689,1778825443000,-177.31,0.00017139,2]
[422326715,1778825443000,-151.0,0.00017808,2]
[422326732,1778825443000,-28193.92323791,0.000179,2]
[422326734,1778825443000,-28193.92323791,0.000179,2]
[422326745,1778825443000,-968.40210584,0.00018,2]
[422326743,1778825443000,-350.0,0.00018,2]
[422326747,1778825443000,-1206.10687919,0.00018,2]
[422326749,1778825443000,-1044.62623881,0.00018,2]
[422326751,1778825443000,-300.0,0.00018053,2]
[422326736,1778825443000,-28193.92323791,0.000179,2]
[422326741,1778825443000,-169.21,0.00017934,2]
[422326738,1778825443000,-169.21,0.00017934,2]
[422326753,1778825443000,-195.0,0.00018082,2]
[422326714,1778825443000,-151.0,0.00017808,2]